bitfinex/quotes_SOLUSD_20241118
["timestamp","ask_amount","ask_price","bid_price","bid_amount"]
[1731922641128,20.0,242.01,241.92,23.8732203]
[1731922642050,19.7397203,242.04,241.94,19.7397203]
[1731922642253,20.0,242.03,241.94,19.7397203]
[1731922642833,19.7397203,242.06,241.96,19.7397203]
[1731922644352,19.7397203,242.06,241.97,4.1327]
[1731922645254,20.0,242.05,241.97,4.1327]
[1731922645553,19.7397203,242.02,241.92,23.8732203]
[1731922646129,19.7397203,242.02,241.92,4.1335]
[1731922646349,19.7397203,242.0,241.92,4.1335]
[1731922648337,19.7397203,242.0,241.85,6.5041]
[1731922648338,19.7397203,241.98,241.88,19.7397203]
[1731922648737,0.12549,241.97,241.88,19.7397203]
[1731922648946,19.7397203,241.96,241.86,23.8743203]
[1731922649256,19.7397203,241.94,241.86,23.8743203]
[1731922649432,20.12549,241.93,241.86,4.1346]
[1731922649946,20.12549,241.91,241.82,19.7397203]
[1731922650154,20.12549,241.91,241.81,4.1353]
[1731922650155,20.0,241.89,241.81,4.1353]
[1731922651352,20.0,241.89,241.8,19.7397203]
[1731922651538,20.0,241.89,241.78,19.7397203]
[1731922651539,19.8652103,241.88,241.78,19.7397203]
[1731922651744,20.0,241.87,241.78,19.7397203]
[1731922652556,20.0,241.87,241.78,23.8756203]
[1731922653058,24.1345,241.87,241.78,23.8756203]
[1731922653453,24.1345,241.87,241.78,19.7397203]
[1731922653648,19.8652103,241.86,241.76,19.7397203]
[1731922653859,0.12549,241.84,241.76,19.7397203]
[1731922654567,20.0,241.87,241.78,19.7397203]
[1731922654762,19.7397203,241.94,241.84,19.7397203]
[1731922654963,19.7397203,241.96,241.86,19.7397203]
[1731922655959,23.8723203,241.98,241.88,19.7397203]
[1731922656137,19.7397203,242.0,241.92,19.7397203]
[1731922656457,6.0664,242.03,241.94,19.7397203]
[1731922656661,19.7397203,242.04,241.94,19.7397203]
[1731922657571,23.8713203,242.04,241.94,19.7397203]
[1731922657771,0.12549,242.02,241.94,19.7397203]
[1731922657944,19.7397203,242.04,241.96,19.7397203]
[1731922658259,0.12549,242.03,241.96,23.8724203]
[1731922659155,19.7397203,242.04,241.96,23.8724203]
[1731922659471,19.8397203,242.16,242.01,19.7397203]
[1731922659472,19.7397203,242.11,242.01,19.7397203]
[1731922659651,19.7397203,242.11,241.96,4.1327]
[1731922659848,19.7397203,242.05,241.96,4.1327]
[1731922660245,164.1302,242.12,241.97,19.7397203]
[1731922660246,20.0,242.06,241.97,19.7397203]
[1731922660467,70.0,242.23,242.05,19.7397203]
[1731922660673,19.7397203,242.18,242.07,19.7397203]
[1731922660964,19.7397203,242.18,242.09,19.7397203]
[1731922661139,19.7397203,242.18,242.07,19.7397203]
[1731922661344,19.7397203,242.18,242.08,4.1308]
[1731922662354,19.7397203,242.18,242.09,19.7397203]
[1731922662667,19.7397203,242.2,242.09,19.7397203]
[1731922663343,19.7397203,242.2,242.1,4.1305]
[1731922664262,19.7397203,242.16,242.07,19.7397203]
[1731922664471,19.7397203,242.14,242.05,19.7397203]
[1731922664655,19.7397203,242.14,242.03,19.7397203]
[1731922666545,19.7397203,242.12,242.04,4.1315]
[1731922667769,19.7397203,242.14,242.05,19.7397203]
[1731922667967,20.0,242.15,242.05,19.7397203]
[1731922669365,20.0,242.15,242.06,4.1312]
[1731922669655,4.1292,242.18,242.07,19.7397203]
[1731922669656,19.7397203,242.18,242.07,19.7397203]
[1731922670054,19.7397203,242.18,242.09,19.7397203]
[1731922670667,19.7397203,242.18,242.1,4.1305]
[1731922671567,19.7397203,242.22,242.12,19.7397203]
[1731922673449,19.7397203,242.22,242.13,4.13]
[1731922679060,19.7397203,242.24,242.14,19.7397203]
[1731922679469,19.7397203,242.22,242.14,19.7397203]
[1731922680474,19.7397203,242.2,242.13,4.13]
[1731922680678,19.7397203,242.22,242.13,4.13]
[1731922680868,19.7397203,242.24,242.14,19.7397203]
[1731922681264,19.7397203,242.24,242.15,4.1296]
[1731922682282,19.7397203,242.22,242.15,4.1296]
[1731922683270,19.7397203,242.24,242.15,4.1296]
[1731922683464,19.7397203,242.26,242.16,19.7397203]
[1731922684563,3.46260957,242.34,242.16,19.7397203]
[1731922684564,4.1267,242.33,242.2,19.7397203]
[1731922684781,19.7397203,242.31,242.22,19.7397203]
[1731922685667,19.7397203,242.29,242.17,27.906184]
[1731922685982,19.7397203,242.27,242.17,23.8690203]
[1731922686189,19.7397203,242.29,242.19,19.7397203]
[1731922686478,19.7397203,242.31,242.21,19.7397203]
[1731922686700,19.7397203,242.31,242.23,19.7397203]
[1731922686866,19.7397203,242.29,242.22,10.5292]
[1731922687988,19.7397203,242.25,242.18,4.129]
[1731922689992,23.776884,242.26,242.18,4.129]
[1731922690585,23.776884,242.26,242.19,19.7397203]
[1731922690779,23.776884,242.26,242.19,23.8685203]
[1731922691089,19.8652103,242.27,242.19,4.1288]
[1731922691090,19.7397203,242.27,242.19,4.1288]
[1731922692492,12.27717822,242.25,242.17,6.4008]
[1731922692668,12.27717822,242.23,242.17,10.53]
[1731922692868,12.27717822,242.21,242.11,33.57007822]
[1731922693081,12.27717822,242.21,242.13,4.1299]
[1731922693987,0.12549,242.26,242.11,33.57007822]
[1731922693988,12.27717822,242.17,242.11,6.183]
[1731922694484,12.27717822,242.17,242.1,4.1304]
[1731922694675,0.12549,242.16,242.08,4.1307]
[1731922695182,0.12549,242.16,242.06,21.7683]
[1731922695183,12.27717822,242.15,242.06,21.7683]
[1731922695400,12.27717822,242.11,242.02,4.1318]
[1731922695767,12.27717822,242.11,242.02,16.40897822]
[1731922695998,0.12549,242.16,242.04,12.27717822]
[1731922695999,12.27717822,242.13,242.04,12.27717822]
[1731922696175,23.902374,242.16,242.02,4.1318]
[1731922696367,0.12549,242.14,242.06,4.1312]
[1731922696569,23.776884,242.16,242.06,4.1312]
[1731922696570,19.66444967,242.2,242.1,19.66444967]
[1731922696763,40.94953225,242.28,242.06,4.1312]
[1731922696764,24.1276,242.27,242.12,19.66444967]
[1731922696991,19.66444967,242.21,242.12,19.66444967]
[1731922697888,19.66444967,242.23,242.14,19.66444967]
[1731922698067,21.28508258,242.28,242.13,4.13]
[1731922698068,19.66444967,242.25,242.16,19.66444967]
[1731922698270,19.66444967,242.27,242.16,19.66444967]
[1731922698487,19.66444967,242.27,242.18,19.66444967]
[1731922698683,19.66444967,242.27,242.14,15.4792]
[1731922698684,19.66444967,242.29,242.2,19.66444967]
[1731922699072,19.66444967,242.31,242.22,19.66444967]
[1731922699688,19.66444967,242.33,242.22,19.66444967]
[1731922699894,19.66444967,242.33,242.23,4.1283]
[1731922700690,19.66444967,242.37,242.28,19.66444967]
[1731922700887,19.66444967,242.4,242.3,19.66444967]
[1731922701891,19.66444967,242.4,242.31,4.1269]
[1731922702768,19.66444967,242.42,242.32,19.66444967]
[1731922703068,19.66444967,242.44,242.34,19.66444967]
[1731922703488,19.66444967,242.46,242.36,19.66444967]
[1731922703900,19.66444967,242.48,242.38,19.66444967]
[1731922704703,19.66444967,242.48,242.4,19.66444967]
[1731922704927,19.66444967,242.52,242.42,19.66444967]
[1731922705199,19.66444967,242.49,242.4,19.66444967]
[1731922705991,19.66444967,242.49,242.41,4.1252]
[1731922706295,21.8738,242.58,242.42,19.66444967]
[1731922706296,19.66444967,242.51,242.42,19.66444967]
[1731922706471,19.66444967,242.53,242.42,19.66444967]
[1731922706678,6.3756,242.64,242.42,15.85928]
[1731922706892,19.66444967,242.58,242.47,19.66444967]
[1731922707274,19.66444967,242.58,242.49,19.66444967]
[1731922708005,19.66444967,242.58,242.5,4.1237]
[1731922708795,19.66444967,242.6,242.51,19.66444967]
[1731922708991,16.2505,242.72,242.53,19.66444967]
[1731922708992,19.66444967,242.62,242.53,19.66444967]
[1731922709992,19.66444967,242.62,242.54,4.123]
[1731922710371,19.66444967,242.6,242.54,4.123]
[1731922710573,19.66444967,242.56,242.48,6.0456]
[1731922710875,19.66444967,242.64,242.42,41.77454967]
[1731922710876,19.66444967,242.5,242.42,41.77454967]
[1731922711076,19.66444967,242.5,242.42,26.235]
[1731922712894,23.776884,242.49,242.42,6.5018]
[1731922713199,19.66444967,242.48,242.34,10.6282]
[1731922713393,19.66444967,242.48,242.37,19.66444967]
[1731922714802,19.66444967,242.48,242.39,19.66444967]
[1731922715189,19.66444967,242.48,242.4,4.1254]
[1731922716504,23.78814967,242.5,242.4,4.1254]
[1731922716707,20.0,242.49,242.41,19.66444967]
[1731922717178,19.66444967,242.5,242.4,4.1254]
[1731922717621,19.66444967,242.48,242.4,4.1254]
[1731922720491,19.66444967,242.5,242.4,4.1254]
[1731922720800,19.66444967,242.42,242.34,6.5018]
[1731922721119,19.66444967,242.42,242.29,4.1272]
[1731922721120,19.66444967,242.38,242.29,4.1272]
[1731922721694,19.66444967,242.4,242.3,19.66444967]
[1731922722003,19.66444967,242.46,242.36,19.66444967]
[1731922722184,19.66444967,242.48,242.38,19.66444967]
[1731922722905,19.66444967,242.48,242.4,19.66444967]
[1731922723214,19.66444967,242.5,242.4,19.66444967]
[1731922723786,19.66444967,242.48,242.38,19.66444967]
[1731922723992,19.66444967,242.46,242.37,4.1258]
[1731922726613,23.78874967,242.47,242.37,4.1258]
[1731922726909,19.66444967,242.43,242.32,19.66444967]
[1731922727086,19.66444967,242.43,242.34,19.66444967]
[1731922727821,19.66444967,242.43,242.32,19.66444967]
[1731922728187,19.66444967,242.37,242.28,6.5162]
[1731922728387,19.66444967,242.37,242.29,4.1272]
[1731922729813,19.66444967,242.39,242.29,23.79164967]
[1731922729994,19.66444967,242.43,242.34,4.1264]
[1731922731612,4.1238,242.49,242.37,19.66444967]
[1731922731786,19.66444967,242.46,242.37,19.66444967]
[1731922732189,19.66444967,242.46,242.35,19.66444967]
[1731922732392,19.66444967,242.42,242.34,4.1264]
[1731922732821,23.776884,242.39,242.3,19.66444967]
[1731922733807,43.79014967,242.38,242.29,4.1272]
[1731922734216,19.66444967,242.36,242.29,4.1272]
[1731922734799,19.66444967,242.36,242.27,4.1276]
[1731922735920,39.66444967,242.38,242.28,19.66444967]
[1731922736098,19.66444967,242.38,242.28,19.66444967]
[1731922736298,19.66444967,242.36,242.27,4.1276]
[1731922736600,19.66444967,242.38,242.28,19.66444967]
[1731922736812,23.776884,242.37,242.28,19.66444967]
[1731922737219,27.902784,242.37,242.28,19.66444967]
[1731922737524,19.66444967,242.36,242.28,19.66444967]
[1731922737814,19.66444967,242.34,242.24,19.66444967]
[1731922738199,19.66444967,242.32,242.24,4.1281]
[1731922738398,19.66444967,242.3,242.22,4.1283]
[1731922738703,19.66444967,242.28,242.2,4.1287]
[1731922738906,19.66444967,242.26,242.2,4.1287]
[1731922739118,19.66444967,242.26,242.16,19.66444967]
[1731922739617,19.66444967,242.24,242.15,4.1295]
[1731922739932,19.66444967,242.26,242.16,19.66444967]
[1731922740299,20.0,242.26,242.16,19.66444967]
[1731922740611,19.66444967,242.21,242.12,25.92814967]
[1731922740802,19.66444967,242.21,242.05,4.8291013]
[1731922740803,19.66444967,242.19,242.1,19.66444967]
[1731922741004,19.66444967,242.19,242.11,4.1303]
[1731922741205,19.66444967,242.19,242.08,19.66444967]
[1731922742129,19.66444967,242.19,242.1,19.66444967]
[1731922743215,19.66444967,242.19,242.06,25.73404967]
[1731922743216,19.66444967,242.17,242.06,25.73404967]
[1731922743517,19.66444967,242.17,242.08,19.66444967]
[1731922743928,19.66444967,242.21,242.1,19.66444967]
[1731922744232,36.19684967,242.25,242.14,19.66444967]
[1731922745014,36.19684967,242.25,242.16,19.66444967]
[1731922745213,19.66444967,242.23,242.14,19.66444967]
[1731922745611,19.66444967,242.21,242.12,19.66444967]
[1731922746125,23.776884,242.2,242.1,19.66444967]
[1731922748017,19.78993967,242.19,242.1,4.1305]
[1731922748641,19.66444967,242.23,242.13,19.66444967]
[1731922748815,23.902374,242.22,242.13,19.66444967]
[1731922749821,23.902374,242.22,242.14,4.1298]
[1731922750944,16.5324,242.25,242.06,6.0696]
[1731922750945,36.19684967,242.25,242.15,19.66444967]
[1731922751113,19.66444967,242.27,242.17,19.66444967]
[1731922751429,19.66444967,242.25,242.15,19.66444967]
[1731922751735,19.66444967,242.21,242.11,19.66444967]
[1731922751940,19.66444967,242.19,242.09,19.66444967]
[1731922752124,19.66444967,242.19,242.11,19.66444967]
[1731922752320,19.66444967,242.21,242.11,19.66444967]
[1731922752640,23.776884,242.2,242.11,19.66444967]
[1731922752812,19.66444967,242.23,242.14,19.66444967]
[1731922753014,19.66444967,242.21,242.12,23.79454967]
[1731922753213,19.66444967,242.23,242.14,19.66444967]
[1731922753935,39.78993967,242.27,242.16,19.66444967]
[1731922754119,19.78993967,242.27,242.18,19.66444967]
[1731922755121,23.776884,242.26,242.16,19.66444967]
[1731922756043,19.66444967,242.25,242.16,19.66444967]
[1731922756229,19.66444967,242.25,242.09,4.1306]
[1731922756230,19.66444967,242.22,242.12,19.66444967]
[1731922756619,43.44133367,242.24,242.14,19.66444967]
[1731922757312,23.776884,242.19,242.1,19.66444967]
[1731922757513,19.66444967,242.22,242.12,19.66444967]
[1731922757823,23.776884,242.23,242.14,19.66444967]
[1731922758135,19.66444967,242.24,242.14,19.66444967]
[1731922758841,19.66444967,242.26,242.16,19.66444967]
[1731922759139,23.776884,242.27,242.18,19.66444967]
[1731922759344,19.66444967,242.3,242.2,19.66444967]
[1731922759513,15.4001,242.31,242.22,19.66444967]
[1731922760342,19.66444967,242.34,242.24,19.66444967]
[1731922760634,15.098,242.37,242.28,19.66444967]
[1731922761231,15.098,242.37,242.19,0.1]
[1731922761438,19.66444967,242.42,242.32,19.66444967]
[1731922762620,19.66444967,242.42,242.33,4.1266]
[1731922767752,19.66444967,242.36,242.24,6.2687]
[1731922767925,19.66444967,242.34,242.25,19.66444967]
[1731922769637,19.66444967,242.34,242.26,4.1277]
[1731922771227,19.66444967,242.32,242.21,4.1286]
[1731922771623,15.4837,242.37,242.25,19.66444967]
[1731922771624,19.66444967,242.34,242.25,19.66444967]
[1731922771825,19.66444967,242.43,242.33,19.66444967]
[1731922772632,19.66444967,242.45,242.35,19.66444967]
[1731922773552,19.66444967,242.45,242.36,4.126]
[1731922773938,19.66444967,242.47,242.37,19.66444967]
[1731922774249,4.1237,242.5,242.39,19.66444967]
[1731922774250,19.66444967,242.49,242.39,19.66444967]
[1731922774632,19.66444967,242.47,242.37,19.66444967]
[1731922774833,19.66444967,242.43,242.34,4.1263]
[1731922775156,19.66444967,242.41,242.34,4.1263]
[1731922775452,19.66444967,242.37,242.3,10.3246]
[1731922775751,19.66444967,242.35,242.3,4.1271]
[1731922776131,19.66444967,242.37,242.3,4.1271]
[1731922776850,19.66444967,242.4,242.32,19.66444967]
[1731922777436,19.66444967,242.4,242.3,19.66444967]
[1731922778060,19.66444967,242.4,242.3,23.79154967]
[1731922779134,0.12549,242.39,242.3,23.79154967]
[1731922779458,28.027874,242.39,242.3,23.79154967]
[1731922779656,23.902374,242.39,242.3,23.79154967]
[1731922781255,19.66444967,242.38,242.3,4.1271]
[1731922783160,19.66444967,242.38,242.28,19.66444967]
[1731922783338,19.66444967,242.36,242.26,23.79214967]
[1731922783542,19.66444967,242.34,242.26,4.1277]
[1731922784071,19.66444967,242.32,242.22,19.66444967]
[1731922785839,19.66444967,242.32,242.24,4.128]
[1731922786855,19.66444967,242.34,242.26,19.66444967]
[1731922787050,43.56682367,242.38,242.28,19.66444967]
[1731922787271,34.93944967,242.4,242.3,19.66444967]
[1731922787447,23.902374,242.39,242.3,19.66444967]
[1731922787647,34.93944967,242.4,242.3,19.66444967]
[1731922788165,34.93944967,242.4,242.21,0.1]
[1731922788166,15.275,242.4,242.32,19.66444967]
[1731922788665,19.66444967,242.39,242.31,4.1269]
[1731922788846,19.66444967,242.35,242.25,19.66444967]
[1731922789863,19.66444967,242.37,242.27,19.66444967]
[1731922790041,19.66444967,242.39,242.29,19.66444967]
[1731922791045,19.66444967,242.41,242.31,19.66444967]
[1731922791261,19.66444967,242.47,242.37,19.66444967]
[1731922791770,19.66444967,242.51,242.4,19.66444967]
[1731922791970,19.66444967,242.49,242.41,4.1252]
[1731922792148,19.66444967,242.47,242.41,4.1252]
[1731922792976,19.66444967,242.45,242.34,19.66444967]
[1731922793151,19.66444967,242.42,242.32,35.82244967]
[1731922793353,19.66444967,242.42,242.32,19.66444967]
[1731922793545,19.66444967,242.4,242.31,4.1269]
[1731922794676,19.66444967,242.38,242.29,4.1271]
[1731922795281,23.902374,242.37,242.29,4.1271]
[1731922796362,19.66444967,242.36,242.29,4.1271]
[1731922797275,19.66444967,242.36,242.26,19.66444967]
[1731922797449,28.028574,242.35,242.27,4.1276]
[1731922797646,19.66444967,242.34,242.27,4.1276]
[1731922797972,23.902374,242.33,242.13,6.6237]
[1731922798180,19.66444967,242.25,242.14,4.1298]
[1731922798476,19.66444967,242.25,242.17,19.66444967]
[1731922798783,23.902374,242.24,242.17,19.66444967]
[1731922798984,35.15684967,242.27,242.17,19.66444967]
[1731922799286,19.66444967,242.25,242.15,19.66444967]
[1731922800386,28.030174,242.26,242.09,19.66444967]
[1731922800387,19.66444967,242.19,242.09,19.66444967]
[1731922800562,19.66444967,242.17,242.08,4.1308]
[1731922801074,19.66444967,242.19,242.09,19.66444967]
[1731922801486,19.66444967,242.19,242.1,4.1305]
[1731922801791,19.66444967,242.3,242.17,19.66444967]
[1731922801978,19.66444967,242.32,242.22,19.66444967]
[1731922802390,19.66444967,242.3,242.2,19.66444967]
[1731922802586,19.66444967,242.28,242.18,19.66444967]
[1731922803388,0.12549,242.27,242.19,4.1289]
[1731922803968,43.902374,242.29,242.2,19.66444967]
[1731922805069,0.12549,242.27,242.18,19.66444967]
[1731922805468,0.12549,242.25,242.16,19.66444967]
[1731922805669,19.66444967,242.22,242.14,19.66444967]
[1731922806174,0.12549,242.23,242.14,19.66444967]
[1731922806986,23.902374,242.21,242.13,4.1299]
[1731922807186,19.66444967,242.18,242.08,23.79524967]
[1731922807494,23.902374,242.17,242.08,23.79524967]
[1731922808686,23.902374,242.17,242.08,19.66444967]
[1731922809384,16.4149,242.21,242.14,19.66444967]
[1731922809589,20.0,242.23,242.14,19.66444967]
[1731922809888,19.66444967,242.24,242.14,19.66444967]
[1731922810886,0.12549,242.23,242.15,4.1296]
[1731922813693,19.66444967,242.28,242.18,19.66444967]
[1731922813898,23.776884,242.27,242.18,19.66444967]
[1731922814476,19.66444967,242.3,242.2,19.66444967]
[1731922815903,19.66444967,242.28,242.21,4.1286]
[1731922816084,4.1272,242.3,242.14,19.66444967]
[1731922816085,19.66444967,242.24,242.14,19.66444967]
[1731922816278,0.12549,242.21,242.14,4.1298]
[1731922818005,19.66444967,242.2,242.1,19.66444967]
[1731922818178,19.66444967,242.2,242.08,23.79524967]
[1731922818179,23.902374,242.17,242.08,23.79524967]
[1731922818498,19.66444967,242.15,242.08,4.1308]
[1731922818695,43.56682367,242.17,242.08,4.1308]
[1731922818900,19.78993967,242.17,242.08,4.1308]
[1731922819595,19.66444967,242.13,242.02,25.91824967]
[1731922820102,19.66444967,242.11,242.02,25.91824967]
[1731922820393,19.66444967,242.07,241.98,19.66444967]
[1731922820792,0.12549,242.08,241.98,19.66444967]
[1731922820981,19.66444967,242.09,242.0,19.66444967]
[1731922821180,19.66444967,242.13,242.02,19.66444967]
[1731922821401,19.66444967,242.11,242.03,4.1317]
[1731922821579,0.12549,242.08,242.0,19.66444967]
[1731922822599,23.902374,242.08,241.98,19.66444967]
[1731922823008,19.66444967,242.07,241.98,19.66444967]
[1731922823488,19.66444967,242.07,241.99,4.1324]
[1731922824185,19.66444967,242.11,242.02,19.66444967]
[1731922824899,19.66444967,242.09,242.0,19.66444967]
[1731922825484,19.66444967,242.09,242.01,4.132]
[1731922825888,0.12549,242.1,242.01,4.132]
[1731922826082,0.12549,242.12,242.04,19.66444967]
[1731922826493,19.66444967,242.15,242.06,19.66444967]
[1731922826813,19.66444967,242.19,242.08,19.66444967]
[1731922827101,15.6137,242.2,242.1,19.66444967]
[1731922827282,19.66444967,242.21,242.12,19.66444967]
[1731922827477,19.66444967,242.21,242.13,4.13]
[1731922829512,19.66444967,242.19,242.1,19.66444967]
[1731922829697,19.66444967,242.19,242.03,19.66444967]
[1731922829698,19.66444967,242.13,242.03,19.66444967]
[1731922830390,19.66444967,242.11,242.01,23.79644967]
[1731922830794,19.66444967,242.09,242.01,23.79644967]
[1731922831107,0.12549,242.08,242.01,4.132]
[1731922832798,0.12549,242.06,241.97,19.66444967]
[1731922833286,19.66444967,242.05,241.97,19.66444967]
[1731922833794,19.66444967,242.07,241.97,19.66444967]
[1731922833994,34.72374967,242.13,242.03,19.66444967]
[1731922834726,19.66444967,242.15,242.05,19.66444967]
[1731922834909,19.66444967,242.17,242.07,19.66444967]
[1731922835523,19.66444967,242.15,242.06,4.1312]
[1731922836620,0.12549,242.13,242.06,4.1312]
[1731922837198,19.66444967,242.15,242.07,19.66444967]
[1731922837518,35.28994967,242.19,242.09,19.66444967]
[1731922837692,19.66444967,242.21,242.11,19.66444967]
[1731922837886,19.66444967,242.26,242.17,19.66444967]
[1731922838087,19.66444967,242.28,242.17,19.66444967]
[1731922838615,19.66444967,242.28,242.18,4.1291]
[1731922838999,0.12549,242.27,242.18,4.1291]
[1731922839198,19.66444967,242.28,242.18,4.1291]
[1731922839417,23.79164967,242.3,242.19,19.66444967]
[1731922839989,19.66444967,242.28,242.2,4.1288]
[1731922840302,19.66444967,242.26,242.2,4.1288]
[1731922840799,23.902374,242.25,242.15,19.66444967]
[1731922841012,19.66444967,242.22,242.13,19.66444967]
[1731922841218,19.66444967,242.2,242.11,19.66444967]
[1731922841409,19.66444967,242.18,242.09,23.79504967]
[1731922841716,23.902374,242.15,242.09,4.1306]
[1731922842121,19.66444967,242.14,242.05,19.66444967]
[1731922842421,23.902374,242.13,242.06,4.1312]
[1731922843519,23.902374,242.13,241.94,0.1]
[1731922843520,19.66444967,242.08,242.01,4.132]
[1731922843715,19.66444967,242.06,242.01,4.132]
[1731922844097,0.12549,242.07,242.01,4.132]
[1731922844726,0.12549,242.07,241.97,6.076]
[1731922844899,23.902374,242.07,241.97,6.076]
[1731922847093,19.66444967,242.1,242.0,19.66444967]
[1731922847316,23.902374,242.09,242.0,19.66444967]
[1731922847515,0.12549,242.09,242.0,19.66444967]
[1731922848826,0.12549,242.09,242.01,4.132]
[1731922852519,19.66444967,242.1,242.01,4.132]
[1731922852902,19.66444967,242.12,242.02,19.66444967]
[1731922853107,19.66444967,242.1,242.01,4.132]
[1731922853410,19.66444967,242.12,242.01,23.79644967]
[1731922853809,19.66444967,242.12,242.03,19.66444967]
[1731922854001,19.66444967,242.14,242.05,19.66444967]
[1731922854224,0.2,242.26,242.05,19.66444967]
[1731922854225,15.803,242.27,242.13,19.66444967]
[1731922854430,19.66444967,242.26,242.17,19.66444967]
[1731922854606,19.66444967,242.26,242.18,4.1291]
[1731922854808,15.803,242.27,242.19,19.66444967]
[1731922855203,19.66444967,242.28,242.19,19.66444967]
[1731922855421,19.66444967,242.3,242.21,19.66444967]
[1731922856016,19.66444967,242.34,242.25,19.66444967]
[1731922856212,4.126,242.37,242.25,19.66444967]
[1731922856213,19.66444967,242.36,242.25,19.66444967]
[1731922856420,19.66444967,242.36,242.27,19.66444967]
[1731922856715,19.66444967,242.36,242.28,4.1274]
[1731922857111,26.23054967,242.38,242.28,4.1274]
[1731922857512,20.0,242.37,242.28,4.1274]
[1731922857913,23.776884,242.36,242.28,4.1274]
[1731922858125,20.12549,242.35,242.28,4.1274]
[1731922859325,20.0,242.35,242.28,4.1274]
[1731922859529,0.12549,242.37,242.29,19.66444967]
[1731922859712,0.12549,242.39,242.29,19.66444967]
[1731922860632,23.902374,242.39,242.29,19.66444967]
[1731922860843,23.902374,242.39,242.3,4.1271]
[1731922861206,0.12549,242.37,242.3,4.1271]
[1731922861411,19.66444967,242.36,242.3,4.1271]
[1731922861931,19.66444967,242.32,242.22,16.1675]
[1731922862140,19.66444967,242.32,242.22,4.1284]
[1731922862316,19.66444967,242.34,242.23,19.66444967]
[1731922863219,19.66444967,242.34,242.25,19.66444967]
[1731922863420,19.66444967,242.38,242.29,19.66444967]
[1731922863628,19.66444967,242.43,242.34,19.66444967]
[1731922863829,19.66444967,242.45,242.36,19.66444967]
[1731922864926,0.12549,242.43,242.36,19.66444967]
[1731922866033,16.184,242.47,242.38,19.66444967]
[1731922866213,20.0,242.46,242.4,19.66444967]
[1731922866414,24.6691035,242.51,242.42,19.66444967]
[1731922867014,19.66444967,242.55,242.46,19.66444967]
[1731922867236,19.66444967,242.57,242.47,4.1242]
[1731922867714,19.66444967,242.55,242.47,4.1242]
[1731922867911,19.66444967,242.53,242.42,19.66444967]
[1731922868117,19.66444967,242.49,242.4,19.66444967]
[1731922869033,0.12549,242.47,242.4,19.66444967]
[1731922869629,19.66444967,242.51,242.41,4.1252]
[1731922869829,20.0,242.5,242.43,19.66444967]
[1731922870837,19.66444967,242.53,242.37,19.66444967]
[1731922870838,43.44133367,242.47,242.37,19.66444967]
[1731922871013,0.1,242.52,242.35,19.66444967]
[1731922871014,43.56682367,242.45,242.35,19.66444967]
[1731922871214,19.66444967,242.43,242.36,4.126]
[1731922871511,0.12549,242.43,242.36,4.126]
[1731922872921,0.12549,242.44,242.37,19.66444967]
[1731922873635,19.66444967,242.45,242.37,19.66444967]
[1731922873820,19.66444967,242.45,242.38,4.1257]
[1731922874334,43.902374,242.46,242.38,4.1257]
[1731922875030,23.902374,242.44,242.38,4.1257]
[1731922875233,160.0,242.52,242.37,19.66444967]
[1731922875424,19.66444967,242.5,242.41,19.66444967]
[1731922875831,164.1216,242.63,242.49,19.66444967]
[1731922876020,19.66444967,242.59,242.49,19.66444967]
[1731922876216,19.66444967,242.59,242.47,19.66444967]
[1731922876548,19.66444967,242.59,242.49,19.66444967]
[1731922876839,19.66444967,242.64,242.56,19.66444967]
[1731922877031,35.51464967,242.68,242.58,19.66444967]
[1731922877217,6.321,242.7,242.6,19.66444967]
[1731922877218,19.66444967,242.7,242.6,19.66444967]
[1731922877838,19.66444967,242.7,242.61,4.1218]
[1731922878043,19.66444967,242.72,242.62,19.66444967]
[1731922878347,19.66444967,242.72,242.61,4.1218]
[1731922878348,19.66444967,242.72,242.64,19.66444967]
[1731922878544,19.66444967,242.74,242.66,19.66444967]
[1731922878722,19.66444967,242.76,242.66,19.66444967]
[1731922879118,19.66444967,242.74,242.66,19.66444967]
[1731922879542,19.66444967,242.74,242.64,19.66444967]
[1731922879743,19.66444967,242.66,242.56,23.78694967]
[1731922879933,19.66444967,242.65,242.56,4.1225]
[1731922880132,19.66444967,242.69,242.56,4.1225]
[1731922880441,20.0,242.7,242.56,4.1225]
[1731922881552,19.66444967,242.75,242.66,19.66444967]
[1731922882137,19.66444967,242.75,242.66,23.78524967]
[1731922882344,19.66444967,242.77,242.66,23.78524967]
[1731922882555,19.66444967,242.75,242.66,23.78524967]
[1731922882731,19.66444967,242.73,242.62,19.66444967]
[1731922883336,23.902374,242.72,242.62,19.66444967]
[1731922883744,19.66444967,242.73,242.63,4.1215]